bitfinex/quotes_SOLUSD_20250930
["timestamp","ask_amount","ask_price","bid_price","bid_amount"]
[1759193075081,0.7,212.8,212.76,4.7001316]
[1759193075397,33.28,212.79,212.76,4.7001316]
[1759193075777,0.7,212.78,212.76,4.7001316]
[1759193076282,0.7,212.78,212.77,3.15708485]
[1759193076684,0.7,212.78,212.74,4.70057346]
[1759193076886,0.7,212.77,212.75,11.7522123]
[1759193077077,0.7,212.76,212.75,11.7522123]
[1759193077276,0.7,212.76,212.72,30.70101541]
[1759193077496,33.98,212.75,212.73,14.13927183]
[1759193079797,33.28,212.75,212.73,19.54997946]
[1759193080801,33.28,212.75,212.73,18.83997946]
[1759193081603,33.28,212.75,212.73,14.13927183]
[1759193081997,33.98,212.75,212.73,14.13927183]
[1759193082198,33.98,212.75,212.73,18.84006421]
[1759193082401,33.28,212.75,212.73,18.84006421]
[1759193082602,33.28,212.75,212.68,0.71]
[1759193082603,0.7,212.74,212.68,0.71]
[1759193082919,0.7,212.74,212.71,14.1412713]
[1759193083780,0.7,212.74,212.71,18.84240086]
[1759193084388,33.28,212.75,212.71,18.84240086]
[1759193084587,33.98,212.75,212.71,19.55240086]
[1759193084900,33.28,212.75,212.72,0.71]
[1759193085309,33.28,212.75,212.73,0.71]
[1759193085611,33.28,212.75,212.72,14.13927183]
[1759193085776,33.28,212.75,212.71,16.45422062]
[1759193085980,33.28,212.75,212.72,14.84927183]
[1759193086507,33.28,212.75,212.73,0.71]
[1759193086888,3.85353055,212.8,212.73,0.71]
[1759193087205,33.28,212.8,212.74,14.13727292]
[1759193087508,0.7,212.79,212.74,14.13727292]
[1759193087704,33.28,212.8,212.76,16.4504606]
[1759193087916,33.28,212.8,212.77,0.71]
[1759193088423,33.28,212.8,212.78,14.13660675]
[1759193089202,33.28,212.8,212.78,14.84660675]
[1759193089409,33.28,212.8,212.78,14.13660675]
[1759193089702,33.28,212.8,212.76,17.1604606]
[1759193089910,33.28,212.8,212.77,14.84594063]
[1759193091895,0.66,212.79,212.76,11.750329]
[1759193092097,0.66,212.78,212.74,26.0]
[1759193092407,0.66,212.77,212.76,14.13793916]
[1759193092601,0.66,212.79,212.76,14.13793916]
[1759193092788,0.66,212.78,212.76,14.13793916]
[1759193094408,33.28,212.8,212.76,14.13793916]
[1759193094607,0.66,212.79,212.76,18.83794504]
[1759193095110,0.66,212.79,212.76,4.70000588]
[1759193095313,0.66,212.79,212.77,14.13727292]
[1759193095812,0.66,212.79,212.76,4.70000588]
[1759193096518,0.66,212.79,212.75,4.70035252]
[1759193096704,0.66,212.78,212.76,14.13727292]
[1759193098294,0.66,212.78,212.76,18.83734159]
[1759193098616,0.66,212.78,212.75,4.70015754]
[1759193100815,0.66,212.79,212.75,5.41015754]
[1759193100999,0.66,212.78,212.75,4.70015754]
[1759193101916,4.7001316,212.76,212.74,14.13860546]
[1759193102116,33.92,212.75,212.69,5.41167849]
[1759193102301,33.92,212.75,212.71,11.75250299]
[1759193102708,33.26,212.75,212.71,11.75250299]
[1759193103021,0.66,212.74,212.71,11.75250299]
[1759193103912,0.66,212.74,212.69,17.16587473]
[1759193104095,0.66,212.74,212.7,0.71]
[1759193104297,0.66,212.74,212.7,14.8512713]
[1759193105798,0.66,212.73,212.7,14.1412713]
[1759193106028,0.66,212.72,212.68,4.70187777]
[1759193106329,33.26,212.71,212.68,19.55448237]
[1759193108523,33.26,212.71,212.68,18.84448237]
[1759193108524,33.92,212.71,212.68,18.84448237]
[1759193108824,33.26,212.71,212.68,5.41187777]
[1759193109199,33.26,212.71,212.69,14.14260459]
[1759193109918,33.26,212.71,212.7,4.70145745]
[1759193110504,33.92,212.71,212.69,14.14260459]
[1759193110835,33.92,212.71,212.68,4.70186639]
[1759193111123,0.66,212.7,212.68,14.1426046]
[1759193111306,3.57936945,212.69,212.6,5.41366886]
[1759193111502,3.57936945,212.69,212.55,0.2]
[1759193111503,26.0,212.67,212.58,5.41392287]
[1759193111701,36.83936945,212.66,212.58,5.41392287]
[1759193111926,4.70278404,212.64,212.56,5.414554]
[1759193112228,0.66,212.63,212.61,14.14727311]
[1759193112430,33.26,212.62,212.61,14.14727311]
[1759193112729,33.26,212.62,212.58,0.71]
[1759193112933,33.26,212.64,212.59,26.71]
[1759193113132,33.26,212.64,212.6,0.71]
[1759193113805,33.26,212.64,212.61,0.71]
[1759193114013,33.26,212.64,212.62,4.70322641]
[1759193114413,33.26,212.64,212.62,5.41322641]
[1759193114830,33.26,212.64,212.62,19.55983241]
[1759193115625,33.26,212.64,212.62,18.84983241]
[1759193115827,0.72,212.63,212.62,14.146606]
[1759193116038,0.72,212.63,212.57,11.76046298]
[1759193116215,0.72,212.63,212.59,14.14927485]
[1759193116422,0.72,212.62,212.59,14.14927485]
[1759193116623,0.72,212.61,212.56,5.404554]
[1759193116823,0.72,212.61,212.57,14.84927485]
[1759193117044,0.72,212.63,212.58,0.7]
[1759193117321,0.72,212.63,212.59,0.7]
[1759193117524,0.72,212.63,212.57,14.84927485]
[1759193117924,33.26,212.64,212.57,14.14927485]
[1759193118152,33.26,212.64,212.59,4.70389011]
[1759193118324,33.98,212.64,212.59,5.40389011]
[1759193118521,33.26,212.64,212.6,0.7]
[1759193118745,33.26,212.64,212.6,26.7]
[1759193118944,33.26,212.64,212.61,0.7]
[1759193119146,33.26,212.64,212.62,0.7]
[1759193119747,33.26,212.64,212.61,14.146606]
[1759193120051,33.26,212.64,212.61,14.846606]
[1759193120250,33.26,212.64,212.62,4.70322641]
[1759193121356,33.26,212.64,212.62,18.8498324]
[1759193122053,33.26,212.64,212.62,14.14660599]
[1759193122228,0.7,212.63,212.59,30.70387562]
[1759193122433,0.7,212.62,212.6,14.14660599]
[1759193122642,33.26,212.64,212.6,14.14660599]
[1759193122829,0.7,212.62,212.6,14.14660599]
[1759193123340,0.7,212.61,212.6,14.14660599]
[1759193123534,0.7,212.61,212.55,11.96158912]
[1759193123736,0.7,212.61,212.56,14.14660599]
[1759193124255,0.7,212.61,212.56,14.86660599]
[1759193124457,0.7,212.6,212.56,14.86660599]
[1759193124764,0.7,212.6,212.56,19.57115999]
[1759193125457,33.96,212.6,212.56,19.57115999]
[1759193125638,33.26,212.6,212.56,19.57115999]
[1759193126362,33.96,212.6,212.56,18.85115999]
[1759193126736,33.96,212.6,212.56,5.424554]
[1759193126935,33.96,212.6,212.55,0.2]
[1759193126936,0.7,212.59,212.55,0.2]
[1759193127242,0.7,212.58,212.57,14.14994222]
[1759193127449,0.7,212.58,212.55,0.2]
[1759193127645,0.7,212.58,212.56,14.14994222]
[1759193127848,0.7,212.57,212.56,14.14994222]
[1759193128044,0.7,212.57,212.55,0.2]
[1759193128246,0.7,212.56,212.55,0.2]
[1759193128451,33.96,212.56,212.55,0.2]
[1759193129040,59.96,212.56,212.55,0.2]
[1759193129259,61.83203867,212.56,212.55,0.2]
[1759193129937,66.53659267,212.56,212.55,0.2]
[1759193130359,80.13218668,212.56,212.55,0.2]
[1759193130859,66.53659267,212.56,212.55,0.2]
[1759193131640,61.83203867,212.56,212.55,0.2]
[1759193132147,66.53659267,212.56,212.55,0.2]
[1759193132559,64.664554,212.56,212.55,0.2]
[1759193132869,80.13218668,212.56,212.55,0.2]
[1759193133041,54.13218668,212.56,212.55,0.2]
[1759193134365,7.27659267,212.56,212.55,0.2]
[1759193134566,33.26,212.56,212.55,0.2]
[1759193134868,33.96,212.56,212.55,0.2]
[1759193135566,33.26,212.56,212.55,0.2]
[1759193135951,33.96,212.56,212.55,0.2]
[1759193136941,38.664554,212.56,212.55,0.2]
[1759193137256,40.53659267,212.56,212.55,0.2]
[1759193139058,39.83659267,212.56,212.55,0.2]
[1759193139258,33.26,212.56,212.55,0.2]
[1759193140070,38.664554,212.56,212.55,0.2]
[1759193140264,33.26,212.56,212.55,0.2]
[1759193141000,33.96,212.56,212.55,0.2]
[1759193141366,33.26,212.56,212.55,0.2]
[1759193141873,37.964554,212.56,212.55,0.2]
[1759193142373,38.664554,212.56,212.55,0.2]
[1759193142677,54.13218668,212.56,212.55,0.2]
[1759193143264,57.25598211,212.56,212.55,0.2]
[1759193152996,57.2617469,212.56,212.55,0.2]
[1759193165408,57.2617469,212.56,212.55,1e-08]
[1759193165578,39.59559401,212.53,212.52,1e-08]
[1759193165785,77.8571929,212.53,212.52,1e-08]
[1759193165983,78.5171929,212.53,212.52,1e-08]
[1759193167709,83.22241098,212.53,212.52,1e-08]
[1759193168413,87.14814598,212.53,212.52,1e-08]
[1759193168785,83.22241098,212.53,212.52,1e-08]
[1759193169195,87.14814598,212.53,212.52,1e-08]
[1759193172804,83.22241098,212.53,212.52,1e-08]
[1759193175710,86.50602539,212.53,212.52,0.70000001]
[1759193176084,51.37398672,212.53,212.52,0.70000001]
[1759193176289,84.63398672,212.53,212.52,0.70000001]
[1759193176594,54.69037231,212.53,212.52,0.70000001]
[1759193178112,36.38956022,212.53,212.52,0.70000001]
[1759193178499,41.0947783,212.53,212.52,0.70000001]
[1759193178694,41.0947783,212.53,212.52,1e-08]
[1759193178896,44.02251163,212.53,212.52,1e-08]
[1759193179210,44.02251163,212.53,212.52,0.70000001]
[1759193179389,39.31729355,212.53,212.52,0.70000001]
[1759193179593,36.38956022,212.53,212.52,0.70000001]
[1759193180717,41.0947783,212.53,212.52,0.70000001]
[1759193182501,41.0947783,212.53,212.52,1e-08]
[1759193183302,41.0947783,212.53,212.52,0.72000001]
[1759193183815,41.0947783,212.53,212.52,1e-08]
[1759193185419,41.7647783,212.53,212.52,1e-08]
[1759193185593,53.52782351,212.53,212.5,0.2]
[1759193185798,26.0,212.51,212.5,0.2]
[1759193186049,62.36956022,212.51,212.5,0.2]
[1759193186214,62.36956022,212.51,212.5,0.92]
[1759193186416,62.36956022,212.51,212.5,0.2]
[1759193186616,67.07522113,212.51,212.5,0.2]
[1759193187493,67.07522113,212.51,212.5,0.92]
[1759193190008,3.12956022,212.51,212.5,0.92]
[1759193190214,36.36956022,212.51,212.5,0.92]
[1759193194126,41.07522113,212.51,212.5,0.2]
[1759193194706,58.26854847,212.51,212.5,0.2]
[1759193195908,62.21216288,212.51,212.5,1e-08]
[1759193196125,58.26854847,212.51,212.48,0.2]
[1759193196432,26.0,212.5,212.48,0.2]
[1759193196630,33.1087171,212.5,212.48,0.2]
[1759193196928,33.7787171,212.5,212.48,0.2]
[1759193198718,38.48459945,212.5,212.48,0.2]
[1759193201933,22.13090618,212.5,212.49,1e-08]
[1759193202233,26.0,212.43,212.4,0.92]
[1759193202439,33.24,212.42,212.41,0.72]
[1759193202739,36.39942982,212.42,212.41,0.72]
[1759193203122,41.10708446,212.42,212.41,0.72]
[1759193203324,37.94765464,212.42,212.41,0.72]
[1759193205432,37.94765464,212.42,212.4,0.2]
[1759193205433,57.62375638,212.42,212.4,0.2]
[1759193205623,3.15264865,212.41,212.4,0.2]
[1759193206927,7.86052492,212.41,212.4,0.2]
[1759193207913,7.86052492,212.41,212.4,0.92]
[1759193208334,169.54765832,212.42,212.4,0.92]
[1759193208714,169.54765832,212.42,212.41,0.72]
[1759193208916,37.94765464,212.42,212.41,0.72]
[1759193210030,37.94765464,212.42,212.4,0.2]
[1759193210230,0.67,212.41,212.4,0.2]
[1759193211146,5.37787627,212.41,212.4,0.2]
[1759193213521,18.97347028,212.41,212.4,0.2]
[1759193213944,22.11881035,212.41,212.4,0.2]
[1759193214323,18.97347028,212.41,212.4,0.2]
[1759193214740,22.11771274,212.41,212.4,0.2]
[1759193214942,21.44771274,212.41,212.4,0.2]
[1759193215850,22.13771274,212.41,212.4,0.2]
[1759193216355,18.99347028,212.41,212.4,0.2]
[1759193217842,22.13501011,212.41,212.4,0.2]
[1759193218940,21.44501011,212.41,212.4,0.2]
[1759193219137,22.13501011,212.41,212.4,0.2]
[1759193220366,22.13501011,212.41,212.4,1e-08]
[1759193223260,21.44501011,212.41,212.4,1e-08]
[1759193223466,51.52347028,212.41,212.4,0.70000001]
[1759193223651,51.52347028,212.41,212.4,1e-08]
[1759193224655,52.21347028,212.41,212.4,1e-08]
[1759193226341,55.3530105,212.41,212.4,1e-08]
[1759193227140,51.52347028,212.41,212.4,1e-08]
[1759193227559,52.21347028,212.41,212.4,1e-08]
[1759193228272,51.52347028,212.41,212.4,1e-08]
[1759193229576,18.30347028,212.41,212.4,0.70000001]
[1759193229777,51.52347028,212.41,212.4,0.70000001]
[1759193230071,51.52347028,212.41,212.4,1e-08]
[1759193230473,52.21347028,212.41,212.4,1e-08]
[1759193231161,55.35317382,212.41,212.4,1e-08]
[1759193231559,54.66317382,212.41,212.4,1e-08]
[1759193231757,55.35317382,212.41,212.4,1e-08]
[1759193233375,58.28090715,212.41,212.4,1e-08]
[1759193233874,54.45120361,212.41,212.4,1e-08]
[1759193236271,57.59343717,212.41,212.4,1e-08]
[1759193236462,54.45120361,212.41,212.4,1e-08]
[1759193237281,57.59477748,212.41,212.4,1e-08]
[1759193238158,67.07145014,212.41,212.4,0.70000001]
[1759193238390,4.70716935,212.45,212.4,0.70000001]
[1759193238554,26.0,212.43,212.4,0.70000001]
[1759193238754,33.22,212.42,212.4,0.70000001]
[1759193238955,33.22,212.41,212.4,0.70000001]
[1759193239588,51.52347028,212.41,212.4,1e-08]
[1759193239881,54.67042163,212.41,212.4,1e-08]
[1759193241182,55.35042163,212.41,212.4,1e-08]
[1759193244086,67.12011232,212.41,212.38,0.2]
[1759193244267,1.87647686,212.39,212.38,0.2]
[1759193244467,64.24342821,212.39,212.38,0.2]
[1759193245189,68.95174781,212.39,212.38,0.2]
[1759193246470,67.07527095,212.39,212.38,0.2]
[1759193246679,68.95174781,212.39,212.38,0.2]
[1759193249889,69.67174781,212.39,212.38,0.2]
[1759193250394,57.26734182,212.39,212.38,0.2]
[1759193250774,39.59559401,212.36,212.35,0.2]
[1759193251085,77.83902222,212.36,212.35,0.2]
[1759193251282,78.55902222,212.36,212.35,0.2]
[1759193251487,13.59559401,212.35,212.33,1e-08]
[1759193251668,54.67197363,212.34,212.33,1e-08]
[1759193251868,55.39197363,212.34,212.33,1e-08]
[1759193252070,61.20582241,212.34,212.33,1e-08]
[1759193252794,39.59559401,212.31,212.3,0.2]
[1759193253092,77.83902222,212.31,212.3,0.2]
[1759193253494,78.55902222,212.31,212.3,0.2]
[1759193253991,83.26911595,212.31,212.3,0.2]
[1759193254981,87.20648787,212.31,212.3,0.2]
[1759193255172,85.33001101,212.31,212.3,0.2]
[1759193255493,83.26911595,212.31,212.3,0.2]
[1759193256492,13.59559401,212.3,212.29,0.2]
[1759193256796,20.67991728,212.3,212.28,1e-08]
[1759193256989,50.68254536,212.29,212.28,1e-08]
[1759193258283,55.39308283,212.29,212.28,1e-08]
[1759193261577,54.67308283,212.29,212.28,1e-08]
[1759193262199,21.45308283,212.29,212.28,0.70000001]
[1759193262500,51.52613148,212.29,212.28,0.70000001]
[1759193263301,33.22,212.29,212.28,0.70000001]
[1759193263480,131.6,212.34,212.28,0.70000001]
[1759193263679,33.22,212.33,212.28,5.41057813]
[1759193263884,33.22,212.33,212.29,0.7]
[1759193264492,59.96,212.36,212.29,0.7]
[1759193264813,33.22,212.35,212.29,0.7]
[1759193265690,37.92936551,212.35,212.29,0.7]
[1759193267701,33.22,212.35,212.29,5.41046619]
[1759193267982,37.92922615,212.35,212.3,0.7]
[1759193268881,0.72,212.42,212.3,26.7]
[1759193269086,48.69207087,212.41,212.31,0.7]
[1759193269281,33.22,212.4,212.31,0.7]
[1759193269498,33.22,212.4,212.31,14.867316]
[1759193269708,131.6,212.39,212.32,5.40987189]
[1759193270005,33.22,212.38,212.33,0.7]
[1759193272410,33.22,212.38,212.33,5.40963924]
[1759193272714,33.22,212.38,212.34,0.67]
[1759193272900,33.22,212.38,212.35,0.67]
[1759193275095,33.22,212.38,212.33,0.67]
[1759193275415,33.22,212.38,212.31,4.70992056]
[1759193275416,37.92861514,212.38,212.34,0.67]
[1759193275590,37.92861514,212.38,212.32,0.67]
[1759193275787,38.58861514,212.38,212.32,0.67]
[1759193280314,136.30882359,212.37,212.32,0.67]
[1759193280516,33.2,212.36,212.32,0.67]
[1759193280713,33.86,212.36,212.29,4.71037266]
[1759193280906,131.6,212.35,212.3,0.67]
[1759193281107,33.2,212.34,212.3,0.67]
[1759193282192,132.26,212.33,212.28,14.16865421]
[1759193282400,1.87647686,212.31,212.22,0.87]
[1759193282611,33.86,212.3,212.22,0.87]
[1759193282793,0.66,212.29,212.22,0.87]
[1759193283112,33.86,212.28,212.22,0.87]
[1759193283514,33.86,212.28,212.23,0.67]
[1759193283515,33.2,212.28,212.23,0.67]
[1759193283699,33.2,212.28,212.24,0.67]
[1759193283900,33.2,212.28,212.25,0.67]
[1759193284102,33.2,212.28,212.22,4.91205722]
[1759193284103,0.66,212.27,212.22,4.91205722]
[1759193284312,33.2,212.26,212.22,5.58205722]
[1759193284619,33.2,212.26,212.23,0.67]
[1759193284921,33.2,212.26,212.24,0.67]
[1759193285507,33.2,212.26,212.25,0.67]
[1759193286113,33.2,212.26,212.22,4.91208585]
[1759193286308,33.2,212.26,212.23,5.38176967]
[1759193286522,33.2,212.26,212.24,0.67]
[1759193287108,33.2,212.26,212.25,0.67]
[1759193287826,33.2,212.26,212.23,4.71176967]
[1759193288124,33.2,212.26,212.24,0.67]
[1759193288321,33.2,212.26,212.22,5.58207955]
[1759193288502,0.66,212.25,212.22,4.91207955]
[1759193288703,33.2,212.26,212.22,5.58207955]
[1759193289026,33.2,212.26,212.23,0.67]
[1759193289201,33.2,212.26,212.24,0.67]
[1759193290330,33.2,212.26,212.23,4.71171805]
[1759193290538,33.2,212.26,212.23,5.38171805]
[1759193291608,33.86,212.26,212.22,0.2]
[1759193291819,33.86,212.26,212.22,0.87]
[1759193292137,33.86,212.26,212.22,5.5819793]
[1759193292820,0.66,212.25,212.22,0.2]
[1759193293021,33.2,212.26,212.22,4.91206837]
[1759193293218,33.86,212.26,212.22,4.91206837]
[1759193293631,0.66,212.25,212.22,0.2]
[1759193294512,0.66,212.25,212.22,4.91203344]
[1759193296028,0.72,212.24,212.22,0.2]
[1759193296339,33.92,212.23,212.22,0.2]
[1759193298710,131.6,212.25,212.22,0.86]
[1759193298933,33.2,212.23,212.22,5.57199568]
[1759193300320,131.6,212.31,212.22,17.35222374]
[1759193300654,4.70919058,212.36,212.25,26.0]
[1759193300812,33.2,212.35,212.26,0.66]
[1759193301011,33.2,212.35,212.3,2.93417346]
[1759193301247,33.2,212.35,212.31,0.66]
[1759193301853,33.2,212.35,212.31,14.82530915]
[1759193302132,33.2,212.35,212.32,5.41987189]
[1759193302316,33.2,212.35,212.32,17.19455161]
[1759193302510,33.2,212.35,212.34,2.93417346]
[1759193302919,33.2,212.35,212.34,3.64417346]
[1759193303116,33.96,212.41,212.34,3.64417346]
[1759193303316,33.96,212.41,212.34,2.93417346]
[1759193303317,33.2,212.4,212.34,2.93417346]
[1759193303607,33.2,212.4,212.35,0.71]
[1759193303810,33.2,212.4,212.37,2.93417346]
[1759193304034,33.2,212.4,212.36,4.70897045]
[1759193304224,33.2,212.4,212.36,5.41897045]
[1759193304412,33.2,212.4,212.37,0.71]
[1759193304813,33.2,212.4,212.36,4.70897045]
[1759193305009,33.2,212.4,212.36,5.41897045]
[1759193305211,33.9,212.42,212.37,0.71]
[1759193305417,33.9,212.42,212.37,3.64417346]
[1759193306237,33.9,212.42,212.38,4.70854129]
[1759193306745,33.2,212.42,212.39,0.71]
[1759193306924,33.2,212.42,212.4,0.71]
[1759193307121,33.2,212.42,212.38,4.70854129]
[1759193307319,33.2,212.42,212.39,4.70854129]
[1759193307538,0.7,212.41,212.39,4.70854129]
[1759193307723,0.7,212.4,212.35,4.70920649]
[1759193307924,0.7,212.4,212.36,0.71]
[1759193308245,33.9,212.42,212.37,5.418763]
[1759193308543,33.2,212.42,212.37,5.418763]
[1759193308729,33.2,212.42,212.38,0.71]
[1759193309437,33.9,212.42,212.38,0.71]
[1759193310025,33.9,212.42,212.37,4.708763]
[1759193310219,0.7,212.41,212.36,5.41898411]
[1759193310743,0.7,212.41,212.36,4.70898411]
[1759193310920,0.7,212.41,212.37,0.71]
[1759193311246,0.7,212.4,212.37,14.16196569]
[1759193312044,33.2,212.42,212.38,0.71]
[1759193312227,0.7,212.41,212.38,4.70854129]
[1759193312623,0.7,212.41,212.37,14.16196569]
[1759193312842,0.7,212.41,212.37,18.87061081]
[1759193313142,33.2,212.42,212.37,18.87061081]
[1759193313333,0.7,212.41,212.37,18.87061081]
[1759193314549,33.2,212.42,212.37,18.87061081]
[1759193314730,33.2,212.42,212.38,0.71]
[1759193314929,33.2,212.42,212.39,0.71]
[1759193315324,33.2,212.42,212.38,14.16196568]
[1759193315524,33.9,212.42,212.38,0.71]
[1759193316243,39.40153521,212.58,212.38,0.71]
[1759193316244,5.40616609,212.49,212.4,4.70809792]
[1759193316440,0.7,212.49,212.41,0.71]
[1759193316643,33.18,212.48,212.41,0.71]
[1759193317029,33.88,212.48,212.41,14.86728746]
[1759193317229,0.7,212.47,212.4,17.18834274]
[1759193317438,0.7,212.46,212.4,17.18834274]
[1759193318736,33.18,212.48,212.4,4.70809792]
[1759193319049,0.7,212.45,212.4,4.70809792]
[1759193319249,0.7,212.44,212.4,4.70809792]
[1759193319737,33.18,212.48,212.38,18.86761687]
[1759193319738,33.88,212.43,212.38,18.86761687]
[1759193319938,33.18,212.43,212.38,18.86761687]
[1759193320131,33.18,212.43,212.39,0.71]
[1759193320532,33.88,212.43,212.39,0.71]
[1759193321446,33.88,212.43,212.4,4.70809792]
[1759193324744,33.88,212.43,212.38,0.71]
[1759193324745,33.18,212.43,212.38,4.70839555]
[1759193325055,0.7,212.42,212.36,4.70885817]
[1759193325247,0.7,212.41,212.36,4.70885817]
[1759193325435,0.7,212.4,212.36,4.70885817]
[1759193325637,0.7,212.39,212.35,4.70920649]
[1759193325848,0.7,212.39,212.35,5.41920649]
[1759193326043,136.30767571,212.42,212.35,4.70920649]
[1759193326242,0.7,212.38,212.33,5.41965007]
[1759193326444,33.18,212.38,212.34,0.71]
[1759193326635,33.18,212.38,212.34,26.71]
[1759193327370,33.18,212.38,212.35,0.71]
[1759193327537,33.18,212.38,212.35,5.41899238]
[1759193327944,33.18,212.38,212.35,4.70899238]
[1759193330365,33.18,212.38,212.35,5.41899238]
[1759193331161,33.88,212.38,212.35,4.70899238]
[1759193331759,33.18,212.38,212.35,5.41899238]
[1759193332263,33.18,212.38,212.35,4.70899238]
[1759193332646,33.84,212.38,212.33,5.41947327]
[1759193332853,0.66,212.37,212.31,4.70987746]
[1759193333047,0.66,212.36,212.31,4.70987746]
[1759193333246,0.66,212.35,212.31,4.70987746]
[1759193333457,33.84,212.34,212.31,4.70987746]
[1759193333762,33.18,212.34,212.31,4.70987746]
[1759193334356,0.66,212.33,212.29,4.71039977]
[1759193334560,0.66,212.32,212.29,4.71039977]
[1759193334756,0.66,212.31,212.27,4.71079924]
[1759193334957,0.66,212.3,212.26,4.71104967]
[1759193335158,37.88945969,212.34,212.26,4.71104967]
[1759193335159,0.66,212.29,212.26,4.71104967]
[1759193335767,0.66,212.28,212.24,4.71142994]
[1759193336070,0.66,212.27,212.23,4.71184972]
[1759193336359,0.66,212.27,212.23,5.42184972]
[1759193336560,33.18,212.3,212.23,0.71]
[1759193336739,0.66,212.29,212.23,0.71]
[1759193338268,0.66,212.29,212.24,4.71164719]
[1759193338455,33.18,212.3,212.25,0.71]
[1759193338661,33.84,212.3,212.25,0.71]
[1759193339473,0.66,212.29,212.24,16.49076516]
[1759193339647,0.66,212.28,212.24,16.49076516]
[1759193339847,0.66,212.27,212.24,16.49076516]
[1759193340254,0.66,212.27,212.24,11.77911797]
[1759193340656,0.66,212.29,212.24,12.48911797]
[1759193340857,33.18,212.3,212.24,11.77911797]
[1759193341175,0.66,212.28,212.22,4.91204574]
[1759193341356,0.66,212.27,212.22,4.91204574]
[1759193341553,0.66,212.26,212.22,4.91204574]
[1759193341757,33.18,212.25,212.22,4.91204574]
[1759193341970,33.18,212.25,212.22,5.62204574]
[1759193342183,33.18,212.25,212.23,0.71]
[1759193342378,2.93005328,212.37,212.26,26.0]
[1759193342582,0.66,212.34,212.27,0.71]
[1759193344152,0.66,212.34,212.28,4.71075937]
[1759193344470,0.66,212.34,212.28,5.42075937]
[1759193345374,0.66,212.34,212.29,0.71]
[1759193345754,0.66,212.34,212.3,0.71]
[1759193347251,0.66,212.33,212.3,4.71012791]
[1759193347450,33.18,212.36,212.3,4.71012791]
[1759193347664,0.66,212.35,212.3,4.71012791]
[1759193347866,0.66,212.34,212.3,4.71012791]
[1759193348466,0.66,212.34,212.3,5.42012791]
[1759193351877,33.18,212.36,212.28,11.77689843]
[1759193352081,33.18,212.36,212.31,0.71]
[1759193354261,33.18,212.36,212.32,16.48455161]
[1759193354457,132.26,212.43,212.35,26.0]
[1759193354788,33.18,212.42,212.36,0.68]
[1759193355455,0.72,212.48,212.4,26.0]
[1759193355660,33.18,212.47,212.41,0.68]
[1759193355964,33.18,212.47,212.4,26.68]
[1759193356162,0.72,212.46,212.41,4.70787627]
[1759193356358,0.72,212.46,212.41,5.38787627]
[1759193356567,33.18,212.47,212.42,0.68]
[1759193356876,0.72,212.46,212.41,16.47756696]
[1759193357270,33.18,212.47,212.42,0.68]
[1759193357578,33.9,212.47,212.43,0.68]
[1759193358082,33.9,212.47,212.41,5.38787627]
[1759193358284,33.18,212.47,212.41,5.38787627]
[1759193358581,33.18,212.47,212.41,4.70787627]
[1759193358753,33.18,212.47,212.42,0.68]
[1759193358952,33.18,212.47,212.43,0.68]